Cogmind - Beta 13 @@@ ROGUE MODE // 2024.05.09 @ 14:58:33 Player: Millea Result: Self-destructed Performance ------------- Evolutions (2) 1000 Regions Visited (3) 600 Robots Destroyed (17) 85 Value Destroyed (351) 351 Prototype IDs (1) 20 Alien Tech Used (0) 0 Bonus (0) 0 TOTAL SCORE: 2056 Bonus ------- None Cogmind --------- Core Integrity 504/550 Matter 279/300 Energy 42/100 System Corruption 6% Temperature Cool (0) Movement Core (250) Ox4 Location -8/Materials Parts ------- > --- POWER (1+1) ------ (None) > --- PROPULSION (3) --- (None) > --- UTILITY (5) ------ Small Storage Unit Power Shielding > --- WEAPON (2) ------- Powered Cannon > --- INVENTORY (8) ---- Subdweller Power Source Large Battery (0) Long-range Tractor Beam Minigun Minigun Minigun Minigun Multitool Peak State ------------ > --- POWER ------------ Light Ion Engine > --- PROPULSION ------- Light Treads > --- UTILITY ---------- Small Storage Unit Structural Scanner Power Shielding System Shield > --- WEAPON ----------- Powered Cannon > --- INVENTORY -------- Subdweller Power Source Large Battery Long-range Tractor Beam Minigun Minigun Minigun Minigun Multitool [Rating: 24] Favorites ----------- Power Light Ion Engine Engine Light Ion Engine Propulsion Light Treads Treads Light Treads Utility Small Storage Unit Device Structural Scanner Storage Small Storage Unit Hackware System Shield Protection Power Shielding Weapon Medium Laser Energy Gun Medium Laser Energy Cannon Powered Cannon Ballistic Gun Light Assault Rifle Ballistic Cannon Battle Cannon Build | -11 -10 -10 -8 ------- Run | Yrd Mat Sub Mat Slots Evolved 4 | . . . 4 Power . | . . . . Propulsion 1 | . . . 1 Utility 3 | . . . 3 Weapon . | . . . . Parts Attached 14 | 7 3 1 3 Power 1 | 1 . . . Engine 1 | 1 . . . Core . | . . . . Reactor . | . . . . Propulsion 2 | 2 . . . Treads 2 | 2 . . . Leg . | . . . . Wheel . | . . . . Hover . | . . . . Flight . | . . . . Utility 6 | 1 3 . 2 Device 3 | . 3 . . Storage 1 | 1 . . . Processor . | . . . . Hackware 1 | . . . 1 Protection 1 | . . . 1 Artifact . | . . . . Weapon 5 | 3 . 1 1 Energy Gun 2 | 2 . . . Energy Cannon 1 | . . . 1 Ballistic Gun 1 | 1 . . . Ballistic Cannon 1 | . . 1 . Launcher . | . . . . Special Weapon . | . . . . Impact Weapon . | . . . . Slashing Weapon . | . . . . Piercing Weapon . | . . . . Special Melee Weapon . | . . . . Unidentified Prototypes 1 | . . . 1 Parts Lost 5 | . . 1 4 Power 1 | . . . 1 Propulsion 2 | . . 1 1 Utility 2 | . . . 2 Weapon . | . . . . Highest Loss Streak 4 | . . 1 4 To Critical Strikes . | . . . . Average Slot Usage (%) 93 | . 98 98 49 Engine 13 | . 14 14 7 Treads 25 | . 28 26 7 Device 12 | . 12 14 8 Storage 13 | . 14 14 8 Energy Gun 22 | . 28 16 . Ballistic Cannon 3 | . . 11 . Naked Turns . | . . . . Heaviest Build 19 | 11 12 14 19 Greatest Support 40 | 40 40 40 20 Greatest Overweight (x) . | . . . . Average Overweight (x) . | . . . . Largest Inventory Capacity 8 | 8 8 8 8 Average Capacity 7 | 6 8 8 8 Most Carried 8 | 6 8 8 8 Average Carried 7 | 4 7 7 7 Final Capacity 8 | 8 8 8 8 Final Carried 8 | 6 8 8 8 Class Distribution -------------------- 100% | Mutant Dominant Class ---------------- Mutant | -10/Materials Mutant | -10/Subcaves Mutant | -8/Materials Resources | -11 -10 -10 -8 ----------- Run | Yrd Mat Sub Mat Matter Collected 389 | 183 104 102 . Remotely . | . . . . Salvage Created 419 | . 253 166 . Parts 38 | . 25 13 . Haulers Intercepted . | . . . . Recyclers Shooed . | . . . . Parts Field Recycled . | . . . . Retrieved Matter . | . . . . Parts Self-Destructed 7 | . . 7 . Prevented . | . . . . Kills | -11 -10 -10 -8 ------- Run | Yrd Mat Sub Mat Combat Hostiles Destroyed 16 | . 10 6 . Guns 14 | . 10 4 . Cannons 2 | . . 2 . Classes Destroyed 5 | . 3 2 . Builder 1 | . 1 . . Swarmer 9 | . 6 3 . Grunt 4 | . 4 . . Cobbler 1 | . . 1 . Subdweller 3 | . . 3 . Best Kill Streak 3 | . 3 3 . Combat Bots Only 3 | . 3 3 . Max Kills in Single Turn 1 | . 1 1 . Gunslinging . | . . . . Exploded . | . . . . Melee . | . . . . Uniques/NPCs Destroyed . | . . . . Combat | -11 -10 -10 -8 -------- Run | Yrd Mat Sub Mat Hostile Shots Fired 96 | . 47 30 19 Missed 19 | . 11 4 4 Damage Taken 1063 | . 329 451 283 Core 281 | . 55 180 46 Absorbed by Shields . | . . . . Redirected to Shielding 10 | . . . 10 Core Remaining (%) 53 | 100 . 6 . Volleys Fired 66 | . 31 23 12 Largest 2 | . 2 2 1 Hottest 90 | . 90 90 40 Shots Fired 118 | . 60 46 12 Gun 87 | . 60 27 . Cannon 31 | . . 19 12 Launcher . | . . . . Special . | . . . . Kinetic 19 | . . 19 . Thermal 99 | . 60 27 12 Explosive . | . . . . Electromagnetic . | . . . . Robot Hit Streak 13 | . 6 13 2 Robot Miss Streak 5 | . 5 4 5 Penetration Max . | . . . . Secondary Targets 1 | . 1 . . Max Gunslinging Chain 1 | . 1 . . Shots Hit Robots 66 | . 32 29 5 Core Hits 29 | . 16 13 . Critical Kills . | . . . . Critical Parts Destroyed . | . . . . Critical Strikes 3 | . . 3 . Burn 2 | . . 2 . Blast 1 | . . 1 . Melee Attacks . | . . . . Impact . | . . . . Slashing . | . . . . Piercing . | . . . . Sneak Attacks . | . . . . Combat Hostiles . | . . . . Follow-up Attacks . | . . . . Damage Inflicted 1036 | . 390 397 249 Guns 595 | . 390 205 . Cannons 441 | . . 192 249 Explosions . | . . . . Melee . | . . . . Ramming . | . . . . Kinetic 192 | . . 192 . Thermal 844 | . 390 205 249 Explosive . | . . . . Electromagnetic . | . . . . Impact . | . . . . Slashing . | . . . . Piercing . | . . . . Highest Corruption 6 | . . . 6 Average Corruption 6 | . . . 6 Corruption Purged . | . . . . Corruption Blocked . | . . . . Overload Shots . | . . . . Overflow Damage . | . . . . Projectiles . | . . . . Explosions . | . . . . Melee . | . . . . Knockbacks 2 | . . 2 . Impact . | . . . . Kinetic 2 | . . 2 . Secondary . | . . . . Self-Inflicted Damage . | . . . . Shots . | . . . . Rammed . | . . . . Targets Rammed . | . . . . Kicked . | . . . . Crushed . | . . . . Highest Temperature 248 | . 248 . 37 Average Temperature 91 | . 101 . 16 Received Heat Transfer 264 | . 96 51 117 Siege Activations . | . . . . Robots Corrupted . | . . . . Combat Hostiles . | . . . . Parts Fried . | . . . . Impact Corruptions . | . . . . Robots Melted . | . . . . Combat Hostiles . | . . . . Parts Melted . | . . . . Heat Transferred 1782 | . 1041 741 . Parts Sabotaged . | . . . . Parts Stolen . | . . . . Parts Stripped . | . . . . Power Chain Reactions . | . . . . Alert | -11 -10 -10 -8 ------- Run | Yrd Mat Sub Mat Peak Influence 170 | . 170 . 33 Initial . | . . . . Average 57 | . 69 . 14 Maximum Alert Level . | . . . . Low Security (%) 100 | 100 100 . 100 Level 1 . | . . . . Level 2 . | . . . . Level 3 . | . . . . Level 4 . | . . . . Level 5 . | . . . . High Security . | . . . . Max Security . | . . . . Squads Dispatched 4 | . 4 . . Investigation 3 | . 3 . . Extermination . | . . . . Reinforcement 1 | . 1 . . Assault . | . . . . Garrison . | . . . . Intercept . | . . . . Searches Triggered . | . . . . Construction Impeded . | . . . . Haulers Reinforced . | . . . . Active Scanning Responses . | . . . . Cargo Convoy Interrupts . | . . . . Stealth | -11 -10 -10 -8 --------- Run | Yrd Mat Sub Mat Distress Signals . | . . . . Communications Jammed . | . . . . Distress Signals . | . . . . Times Spotted 21 | . 11 6 4 Peak Tracking Total 3 | . 3 3 3 Tactical Retreats 1 | . . 1 . Traps | -11 -10 -10 -8 ------- Run | Yrd Mat Sub Mat Traps Triggered 1 | . 1 . . Indirectly . | . . . . Trap Hack Attempts . | . . . . Triggered . | . . . . Disarmed . | . . . . Reprogrammed . | . . . . Reused . | . . . . Traps Extracted . | . . . . Installed . | . . . . Triggered . | . . . . Machines | -11 -10 -10 -8 ---------- Run | Yrd Mat Sub Mat Machines Disabled . | . . . . Max in Single Turn . | . . . . Machines Repaired . | . . . . Machines Dismantled . | . . . . Machines Sabotaged . | . . . . Overloaded Fab Kills . | . . . . Hacking | -11 -10 -10 -8 --------- Run | Yrd Mat Sub Mat Machines Accessed 3 | . 2 1 . Terminals 1 | . 1 . . Fabricators . | . . . . Repair Stations . | . . . . Recycling Units 1 | . 1 . . Scanalyzers . | . . . . Garrison Access . | . . . . Total Hacks 6 | . 3 3 . Successful 4 | . 1 3 . Failed 2 | . 2 . . Catastrophic . | . . . . Database Lockouts . | . . . . Manual 1 | . 1 . . Terminals 2 | . 2 . . Fabricators . | . . . . Repair Stations . | . . . . Recycling Units 1 | . 1 . . Scanalyzers . | . . . . Garrison Access . | . . . . Terminal Hacks 3 | . . 3 . Record 3 | . . 3 . Fabricator Hacks . | . . . . Repair Station Hacks . | . . . . Recycling Unit Hacks . | . . . . Scanalyzer . | . . . . Garrison Access Hacks . | . . . . Unauthorized Hacks 1 | . 1 . . Terminals . | . . . . Fabricators . | . . . . Repair Stations . | . . . . Recycling Units 1 | . 1 . . Tunnel 1 | . 1 . . Scanalyzers . | . . . . Garrison Access . | . . . . Data Cores Recovered . | . . . . Used . | . . . . Hacking Detections 1 | . 1 . . Full Trace Events 1 | . 1 . . Feedback Events . | . . . . Feedback Blocked . | . . . . Robot Schematics Acquired . | . . . . Robots Built . | . . . . Authchips . | . . . . Time . | . . . . Total Robot Build Rating . | . . . . Part Schematics Acquired . | . . . . Parts Built . | . . . . Authchips . | . . . . Time . | . . . . Total Part Build Rating . | . . . . Parts Repaired . | . . . . Time . | . . . . Parts Recycled . | . . . . Recycled Matter . | . . . . Retrieved Matter . | . . . . Retrieved Components . | . . . . Parts Scanalyzed . | . . . . Part Schematics Acquired . | . . . . Parts Damaged . | . . . . Bothacking | -11 -10 -10 -8 ------------ Run | Yrd Mat Sub Mat Used RIF Installer . | . . . . Robots Hacked . | . . . . Non-combat . | . . . . Combat . | . . . . Robot Hacks Applied . | . . . . Relay Couplers Released . | . . . . Fabnet Peak Effective % . | . . . . Robots Rewired . | . . . . Allies Hacked . | . . . . Hacks Repelled . | . . . . Allies | -11 -10 -10 -8 -------- Run | Yrd Mat Sub Mat Total Allies . | . . . . Largest Group . | . . . . Highest-Rated Group . | . . . . Highest-Rated Ally . | . . . . Total Orders . | . . . . Ally Attacks . | . . . . Total Damage . | . . . . Kills . | . . . . Allies Corrupted . | . . . . Allies Melted . | . . . . Intel | -11 -10 -10 -8 ------- Run | Yrd Mat Sub Mat Robot Analysis Total . | . . . . Derelict Logs Recovered . | . . . . Drone Launches . | . . . . Drone Recoveries . | . . . . Exploration | -11 -10 -10 -8 ------------- Run | Yrd Mat Sub Mat Turns Passed 1974 | 99 1141 549 185 Spaces Moved 792 | 56 388 267 81 Core 5 | 5 . . . Treads 787 | 51 388 267 81 Legs . | . . . . Wheels . | . . . . Hover . | . . . . Flight . | . . . . Fastest Speed 50 | 50 160 160 160 Average Speed 159 | 150 160 160 160 Slowest Speed 160 | 160 160 160 160 Overloaded Moves . | . . . . Propulsion Burnouts . | . . . . Robots Hopped . | . . . . Cave-ins Triggered . | . . . . Exploration Rate (%) 21 | 5 56 16 10 Regions Visited 3 Branch Regions 1 Pre-discovered Areas 1 | . 1 . . Known Exits Taken . | . . . . Unknown Exits Taken 3 | 1 1 1 . Scrap Searched . | . . . . Spaces Dug . | . . . . Terrain Destroyed 5 | . . . 5 Melee . | . . . . Projectile 5 | . . . 5 AOE . | . . . . Terrain Rammed . | . . . . Walls Destroyed . | . . . . Machines Disabled . | . . . . Actions | -11 -10 -10 -8 --------- Run | Yrd Mat Sub Mat Total 1392 | 68 848 346 130 Wait 486 | . 421 47 18 Move 789 | 55 387 266 81 Hop . | . . . . Pick Up 21 | 6 4 3 8 Fast Attach 10 | 6 1 1 2 Attach 1 | . . . 1 Detach . | . . . . Swap 3 | 1 2 . . Drop 15 | . 2 5 8 Fire 66 | . 31 23 12 Melee . | . . . . Ram . | . . . . Kick . | . . . . Crush . | . . . . Escape Stasis . | . . . . Rewire 1 | . . 1 . Trap . | . . . . Miscellaneous . | . . . . Route ------- -11/Scrapyard -10/Materials (discovered 3 exits: [*Mat x2] / *Sub) -10/Subcaves -8/Materials History --------- Turn | Location | Event 4 | -11/Scrapyard | Discovered new exit (range 16) 100 | -11/Scrapyard | Entered Materials 308 | -10/Materials | Discovered new exit (range 14) 314 | -10/Materials | Build established: Mutant 323 | -10/Materials | Discovered new exit (range 9) 433 | -10/Materials | Discovered new exit (range 14) 1241 | -10/Materials | Entered Subcaves 1531 | -10/Subcaves | Visited Clippyterm 1536 | -10/Subcaves | Learned Factory trap positions 1645 | -10/Subcaves | Discovered new exit (range 15) 1731 | -10/Subcaves | A Subdweller sparked back to life 1731 | -10/Subcaves | A Subdweller sparked back to life 1731 | -10/Subcaves | A Subdweller sparked back to life 1739 | -10/Subcaves | Core integrity fell below 50% 1745 | -10/Subcaves | Core integrity fell below 20% 1770 | -10/Subcaves | Found Prototype Energy Cannon 1790 | -10/Subcaves | Entered Materials 1790 | -8/Materials | Evolved 4 slots: Propulsion x1, Utility x3 1792 | -8/Materials | Identified Powered Cannon 1793 | -8/Materials | Attached Powered Cannon, gained temporary slot: Power 1975 | -8/Materials | Self-destructed Last Messages --------------- 01887_ Acquired Power Shielding. 01893_ Dropped Battle Cannon. 01893_ Acquired Lrn. Tractor Beam. 01917_ U-05 Engineer builds a Wall. 01922_ K-01 Serf collects debris. 01951_ Lgt. Treads destroyed. 01952_ Dropped Lrg. Battery. 01953_ Extracted 108 energy. 01955_ Extracted 45 energy. 01958_ Extracted 2 energy. 01962_ U-05 Engineer builds a Wall. 01963_ Acquired Lrg. Battery. 01968_ Lgt. Ion Engine destroyed. 01970_ U-05 Engineer builds a Wall. 01971_ System Shield destroyed. 01971_ Structural Scanner destroyed. 01971_ System corrupted by crushing effect (+4). 01971_ System corrupted by crushing effect (+2). 01972_ K-01 Serf collects debris. 01974_ Critical hit (Burn: +37). Map ----- +----------------------------------------------------+ | ?????????????????????????????????????????????????? | | ?????????????????????????????????????????????????? | | ?????????????????????????????????????????????????? | | ?????????????????????????????????????????????????? | | ?????????????????????????????????????????????????? | | ?????????????????????????????????????????????????? | | ?????????????????????????????????????????????????? | | ?????????????????????????????????????????????????? | | ?????????????????????????????????????????????????? | | ?????????????????????????????????????????????????? | | ?????????????????????????????????????????????????? | | ?????????????????????????????????????????????? | | ??????????????????????????????????????????????#### | | ????????????????????????????????????????????? + | | ????????????????????????????????????????????? #### | | ????????????????????????????????????????????? # | | ?????????????????????????????????????????????## | | ?????????????????????????????????????????????## | | ?????????????????????????????????????????????##! | | ?????????????????????????????????????????????## | | ?????????????????????????????????????????????## | | ?????????????????????????????????????????????## | | ?????????????????????????????????????????????## ] | | ????????????????############################### | | ????????????????################################## | | ?????????? u ug b@ r | | ?????????? k | | ?????????? k k ug | | ??????????####/####################### ######### | | ?????????? ################### ######### | | ????????????????????????????????????## ##??????? | | ????????????????????????????????????## ##??????? | | ????????????????????????????????????## ##??????? | | ????????????????????????????????????## # ??????? | | ????????????????????????????????????## # ??????? | | ????????????????????????????????????## # ??????? | | ????????????????????????????????????## # ??????? | | ????????????????????????????????????## # ??????? | | ????????????????????????????????????## # ??????? | | ????????????????????????????????????## + ??????? | | ????????????????????????????????????## ##??????? | | ?????????????????????????????????????????????????? | | ?????????????????????????????????????????????????? | | ?????????????????????????????????????????????????? | | ?????????????????????????????????????????????????? | | ?????????????????????????????????????????????????? | | ?????????????????????????????????????????????????? | | ?????????????????????????????????????????????????? | | ?????????????????????????????????????????????????? | | ?????????????????????????????????????????????????? | +----------------------------------------------------+ Best States ------------- Heat Dissipation 35 Energy Generation 10 Energy Capacity 125 Matter Stores 300 Matter Capacity 300 Sight Range 16 Terrain Scan Density 10 Power Shielding 33 Evasion (%) 40 Recoil Reduction 2 Defensive Hacking 10 Item Schematics ----------------- None Robot Schematics ------------------ None Fabricated ------------ Nothing Alien Tech Used ----------------- None Achievements -------------- None Challenges ------------ None Game ------ Seed SeismicSchematicBuckler Manual? 0 Play Time 00:10:23 Cumulative 338.3 hours Start 2024.05.09 @ 14:50:02 End 2024.05.09 @ 14:58:33 Sessions 1 Manual Loads 0 Difficulty Rogue Special Mode None Game No. 247 Rogue 247 Adventurer 0 Explorer 0 Win Type - Total 12 Types 8/0/3/1/0/0/0/0/0 Lore% 80 Gallery% 88 Achievement% 75 Wizard Run 0 Options --------- Layout 2 ASCII 1 Keyboard 0 Movement Vi Keybinds 0 Fullscreen 2 Font 24/Smallcaps Map View 50x44 Zoom Use 0% Tactical HUD 1 Map Filters NONE Filters NONE Steam 1 RUN: 3f9315dc-1fce-4e54-b837-9ec9f3e10a4f